bitfinex-derivatives/quotes_BTCF0:USTF0_20241019
["timestamp","ask_amount","ask_price","bid_price","bid_amount"]
[1729365175402,0.065948,68232.0,68231.0,0.38603808]
[1729365178207,0.065948,68232.0,68231.0,0.47403545]
[1729365180409,0.065948,68232.0,68231.0,0.38603808]
[1729365180614,0.065948,68232.0,68231.0,0.47403545]
[1729365181005,0.11093211,68232.0,68231.0,0.2847232]
[1729365181299,0.17662083,68232.0,68231.0,0.2847232]
[1729365186802,0.17662356,68232.0,68231.0,0.2847232]
[1729365187512,0.11067556,68232.0,68231.0,0.2847232]
[1729365188517,0.11067273,68232.0,68231.0,0.2187742]
[1729365188815,0.25410436,68234.0,68232.0,0.065948]
[1729365189016,0.25410436,68234.0,68233.0,0.1013224]
[1729365189212,0.09278884,68234.0,68233.0,0.3205854]
[1729365193415,0.09278884,68234.0,68233.0,0.32058667]
[1729365198316,0.09278884,68234.0,68233.0,0.32057692]
[1729365199607,0.09278884,68234.0,68233.0,0.38652392]
[1729365203108,0.09278884,68234.0,68233.0,0.38655124]
[1729365204008,0.20342653,68234.0,68233.0,0.28521]
[1729365207007,0.29908847,68234.0,68233.0,0.28521]
[1729365207210,0.36474205,68234.0,68233.0,0.28521]
[1729365211019,0.28386919,68234.0,68233.0,0.38656657]
[1729365211315,0.09278884,68234.0,68233.0,0.38656657]
[1729365212713,0.09278884,68234.0,68233.0,0.38656584]
[1729365219221,0.20348668,68234.0,68233.0,0.28521]
[1729365222421,0.09278884,68234.0,68233.0,0.28521]
[1729365222623,0.20348607,68234.0,68233.0,0.28521]
[1729365226241,0.20348607,68234.0,68233.0,0.3865021]
[1729365226242,0.09278884,68234.0,68233.0,0.3865021]
[1729365227330,0.09278884,68234.0,68233.0,0.38650033]
[1729365232231,0.09278884,68234.0,68233.0,0.38650138]
[1729365234234,0.25410436,68234.0,68233.0,0.28521]
[1729365234435,0.36480598,68234.0,68233.0,0.28521]
[1729365239036,0.20349046,68234.0,68233.0,0.28521]
[1729365239641,0.36480598,68234.0,68233.0,0.28521]
[1729365240040,0.20349046,68234.0,68233.0,0.28521]
[1729365240945,0.15850635,68234.0,68233.0,0.28521]
[1729365241147,0.09278884,68234.0,68233.0,0.45981195]
[1729365242640,0.09278884,68234.0,68233.0,0.38650728]
[1729365243648,0.02684284,68234.0,68233.0,0.38650728]
[1729365243839,0.426744,68236.0,68233.0,0.32056028]
[1729365244150,0.426744,68236.0,68235.0,0.066145]
[1729365244350,0.45251766,68236.0,68235.0,0.13945032]
[1729365245353,0.45251766,68236.0,68235.0,0.066145]
[1729365249256,0.51828028,68236.0,68235.0,0.066145]
[1729365249846,0.15748028,68236.0,68235.0,0.066145]
[1729365250957,0.20246383,68236.0,68235.0,0.066145]
[1729365251364,0.25502678,68236.0,68235.0,0.066145]
[1729365251573,0.36377935,68236.0,68235.0,0.066145]
[1729365251868,0.25502678,68236.0,68235.0,0.066145]
[1729365252866,0.20246383,68236.0,68235.0,0.066145]
[1729365255279,0.36376501,68236.0,68235.0,0.066145]
[1729365255766,0.41632813,68236.0,68235.0,0.066145]
[1729365255967,0.36376501,68236.0,68235.0,0.066145]
[1729365256159,0.20246383,68236.0,68235.0,0.066145]
[1729365256360,0.20246383,68236.0,68235.0,0.24069877]
[1729365256361,0.09171766,68236.0,68235.0,0.24069877]
[1729365259978,0.09171766,68236.0,68235.0,0.24070335]
[1729365262279,0.02577366,68236.0,68235.0,0.24070335]
[1729365262579,0.3608,68237.0,68235.0,0.16739803]
[1729365262879,0.3608,68237.0,68236.0,0.07349486]
[1729365263266,0.3608,68237.0,68236.0,0.0002]
[1729365264272,0.3608,68237.0,68236.0,0.07349486]
[1729365264680,0.3608,68237.0,68236.0,0.0002]
[1729365265080,0.38711215,68237.0,68236.0,0.07349486]
[1729365267477,0.38711215,68237.0,68236.0,0.0002]
[1729365267681,0.38711215,68237.0,68236.0,0.07349486]
[1729365271273,0.49846309,68237.0,68236.0,0.0002]
[1729365271474,0.65976427,68237.0,68236.0,0.0002]
[1729365271675,0.71232691,68237.0,68236.0,0.0002]
[1729365272087,0.55102573,68237.0,68236.0,0.0002]
[1729365274489,0.5510543,68237.0,68236.0,0.0002]
[1729365274680,0.65978233,68237.0,68236.0,0.0002]
[1729365274990,0.49849166,68237.0,68236.0,0.0002]
[1729365275181,0.55105403,68237.0,68236.0,0.0002]
[1729365276078,0.49849166,68237.0,68236.0,0.0002]
[1729365276483,0.49849166,68237.0,68236.0,0.066144]
[1729365279393,0.49849166,68237.0,68236.0,0.13943886]
[1729365279394,0.38711215,68237.0,68236.0,0.13943886]
[1729365280992,0.02631215,68237.0,68236.0,0.16680365]
[1729365281190,0.098038,68242.0,68236.0,0.10085965]
[1729365281191,0.065939,68241.0,68236.0,0.10085965]
[1729365281388,0.065939,68241.0,68240.0,0.0002]
[1729365291306,0.065939,68241.0,68240.0,0.0441668]
[1729365291804,0.065939,68241.0,68240.0,0.0002]
[1729365292105,0.065939,68241.0,68240.0,0.0441668]
[1729365293809,0.065939,68241.0,68240.0,0.0002]
[1729365294008,0.065939,68241.0,68240.0,0.0441668]
[1729365294305,0.065939,68241.0,68232.0,0.0645]
[1729365294306,0.1114465,68241.0,68232.0,0.0645]
[1729365294508,0.1114465,68240.0,68232.0,0.0645]
[1729365294702,0.1114465,68239.0,68236.0,0.065943]
[1729365294902,0.1114465,68238.0,68236.0,0.065943]
[1729365295102,0.1114465,68237.0,68236.0,0.065943]
[1729365299012,0.1773895,68237.0,68236.0,0.065943]
[1729365301507,0.065943,68237.0,68236.0,0.065943]
[1729365309512,0.1317312,68237.0,68236.0,0.065943]
[1729365311209,0.17671481,68237.0,68236.0,0.065943]
[1729365311413,0.10183126,68237.0,68236.0,0.065943]
[1729365311619,0.17669583,68237.0,68236.0,0.065943]
[1729365316521,0.065943,68237.0,68236.0,0.065943]
[1729365323624,0.17670906,68237.0,68236.0,0.065943]
[1729365325925,0.17672587,68237.0,68236.0,0.065943]
[1729365330332,0.33799868,68237.0,68236.0,0.065943]
[1729365331333,0.17672587,68237.0,68236.0,0.065943]
[1729365331526,0.065943,68237.0,68236.0,0.065943]
[1729365334340,0.065943,68237.0,68236.0,0.13922644]
[1729365335327,0.065943,68237.0,68236.0,0.065943]
[1729365335635,0.065943,68237.0,68236.0,0.13922644]
[1729365338327,0.065943,68237.0,68236.0,0.065943]
[1729365338522,0.17673073,68237.0,68236.0,0.065943]
[1729365340231,0.11078773,68237.0,68236.0,0.065943]
[1729365340532,0.16130995,68237.0,68236.0,0.065943]
[1729365340937,0.11078773,68237.0,68236.0,0.065943]
[1729365341242,0.58908995,68240.0,68237.0,0.065943]
[1729365341544,0.11113357,68239.0,68237.0,0.065943]
[1729365345246,0.17707457,68239.0,68237.0,0.065943]
[1729365345443,0.11113357,68238.0,68237.0,0.065943]
[1729365346751,0.065941,68239.0,68237.0,0.065943]
[1729365347040,0.065941,68239.0,68238.0,0.0002]
[1729365353945,0.665941,68239.0,68238.0,0.05880457]
[1729365354144,0.665941,68239.0,68238.0,0.0002]
[1729365354641,0.065941,68239.0,68238.0,0.0002]
[1729365355154,0.665941,68239.0,68238.0,0.0002]
[1729365355340,1.026741,68239.0,68238.0,0.0002]
[1729365355541,0.426741,68239.0,68238.0,0.0002]
[1729365355743,1.026741,68239.0,68238.0,0.0002]
[1729365356238,0.426741,68239.0,68238.0,0.0002]
[1729365357750,1.026741,68239.0,68238.0,0.0002]
[1729365357943,0.426741,68239.0,68238.0,0.0002]
[1729365358943,0.426741,68239.0,68238.0,0.04414349]
[1729365361536,0.065941,68239.0,68238.0,0.04414349]
[1729365361740,0.3908152,68239.0,68223.0,0.4235]
[1729365361950,0.16130995,68234.0,68233.0,0.065947]
[1729365362149,0.27219935,68234.0,68233.0,0.065947]
[1729365365456,0.27218263,68234.0,68233.0,0.065947]
[1729365367443,0.27217314,68234.0,68233.0,0.065947]
[1729365367855,0.27217241,68234.0,68233.0,0.065947]
[1729365368954,0.16130995,68234.0,68233.0,0.065947]
[1729365369154,0.3608,68235.0,68233.0,0.065947]
[1729365369458,0.426745,68235.0,68234.0,0.05877679]
[1729365370460,0.065945,68235.0,68234.0,0.05877679]
[1729365371158,0.426745,68235.0,68234.0,0.05877679]
[1729365371550,0.426745,68235.0,68234.0,0.0002]
[1729365372859,0.065945,68235.0,68234.0,0.0002]
[1729365373049,0.09180618,68235.0,68234.0,0.0002]
[1729365373463,0.45260618,68235.0,68234.0,0.0002]
[1729365373959,0.09180618,68235.0,68234.0,0.0002]
[1729365374353,0.45260618,68235.0,68234.0,0.0002]
[1729365374655,0.09180618,68235.0,68234.0,0.0002]
[1729365374859,0.45260618,68235.0,68234.0,0.0002]
[1729365375851,0.09180618,68235.0,68234.0,0.0002]
[1729365376060,0.45260618,68235.0,68234.0,0.0002]
[1729365376855,0.56347724,68235.0,68234.0,0.0002]
[1729365378566,0.61604211,68235.0,68234.0,0.0002]
[1729365378863,0.25524211,68235.0,68234.0,0.0002]
[1729365379063,0.56347724,68235.0,68234.0,0.0002]
[1729365379459,0.61604211,68235.0,68234.0,0.0002]
[1729365379657,0.25524211,68235.0,68234.0,0.0002]
[1729365379863,0.45260618,68235.0,68234.0,0.0002]
[1729365380063,0.56348038,68235.0,68234.0,0.0002]
[1729365381059,0.61604525,68235.0,68234.0,0.0002]
[1729365382355,0.2552519,68235.0,68234.0,0.0002]
[1729365382570,0.56348703,68235.0,68234.0,0.0002]
[1729365382956,0.6160519,68235.0,68234.0,0.0002]
[1729365383970,0.45260618,68235.0,68234.0,0.0002]
[1729365390273,0.09180618,68235.0,68234.0,0.0002]
[1729365391073,0.45260618,68235.0,68234.0,0.0002]
[1729365391273,0.09180618,68235.0,68234.0,0.0002]
[1729365391771,0.45260618,68235.0,68234.0,0.0002]
[1729365391968,0.56352564,68235.0,68234.0,0.0002]
[1729365392171,0.20272564,68235.0,68234.0,0.0002]
[1729365392473,0.56352564,68235.0,68234.0,0.0002]
[1729365392766,0.64709079,68235.0,68234.0,0.0002]
[1729365394275,0.64709079,68235.0,68234.0,0.066146]
[1729365396175,0.28629079,68235.0,68234.0,0.066146]
[1729365396364,0.39505152,68235.0,68234.0,0.066146]
[1729365396672,0.75585152,68235.0,68234.0,0.066146]
[1729365396872,0.80841667,68235.0,68234.0,0.066146]
[1729365397265,0.75585152,68235.0,68234.0,0.066146]
[1729365398369,0.39505152,68235.0,68234.0,0.066146]
[1729365398678,0.75585152,68235.0,68234.0,0.066146]
[1729365398973,0.64493206,68235.0,68234.0,0.066146]
[1729365399173,0.48360618,68235.0,68234.0,0.066146]
[1729365399371,0.12280618,68235.0,68234.0,0.066146]
[1729365399577,0.48360618,68235.0,68234.0,0.066146]
[1729365400465,0.12280618,68235.0,68234.0,0.066146]
[1729365401177,0.48360618,68235.0,68234.0,0.066146]
[1729365401969,0.12280618,68235.0,68234.0,0.066146]
[1729365402178,0.48360618,68235.0,68234.0,0.066146]
[1729365405173,0.12280618,68235.0,68234.0,0.066146]
[1729365405481,0.48360618,68235.0,68234.0,0.066146]
[1729365406071,0.12280618,68235.0,68234.0,0.066146]
[1729365406472,0.48360618,68235.0,68234.0,0.066146]
[1729365406672,0.12280618,68235.0,68234.0,0.066146]
[1729365406886,0.48360618,68235.0,68234.0,0.066146]
[1729365407274,0.45260618,68235.0,68234.0,0.066146]
[1729365413978,0.56361734,68235.0,68234.0,0.066146]
[1729365414171,0.61618072,68235.0,68234.0,0.066146]
[1729365414574,0.7249158,68235.0,68234.0,0.066146]
[1729365415284,0.56361734,68235.0,68234.0,0.066146]
[1729365416087,0.56358664,68235.0,68234.0,0.066146]
[1729365420583,0.56355253,68235.0,68234.0,0.066146]
[1729365420988,0.6161168,68235.0,68234.0,0.066146]
[1729365422288,0.45260618,68235.0,68234.0,0.066146]
[1729365423878,0.38666118,68235.0,68234.0,0.066146]
[1729365429083,0.49764265,68235.0,68234.0,0.066146]
[1729365430295,0.47178147,68235.0,68234.0,0.066146]
[1729365434094,0.11098147,68235.0,68234.0,0.066146]
[1729365436298,0.02640487,68236.0,68235.0,0.065945]
[1729365436487,0.065942,68238.0,68236.0,0.065944]
[1729365437498,0.065942,68238.0,68237.0,0.0002]
[1729365440197,0.09294091,68238.0,68237.0,0.0002]
[1729365442092,0.09294091,68238.0,68237.0,0.05877213]
[1729365442489,0.09294091,68238.0,68237.0,0.0002]
[1729365444894,0.45374091,68238.0,68237.0,0.0002]
[1729365451206,0.56480051,68238.0,68237.0,0.0002]
[1729365451711,0.61736334,68238.0,68237.0,0.0002]
[1729365452708,0.72602534,68238.0,68237.0,0.0002]
[1729365453415,0.77859224,68238.0,68237.0,0.0002]
[1729365454316,0.72602941,68238.0,68237.0,0.0002]
[1729365454513,0.56480458,68238.0,68237.0,0.0002]
[1729365455219,0.20400458,68238.0,68237.0,0.0002]
[1729365455414,0.56480458,68238.0,68237.0,0.0002]
[1729365459419,0.45374091,68238.0,68237.0,0.0002]
[1729365466223,0.56481324,68238.0,68237.0,0.0002]
[1729365468122,0.72602321,68238.0,68237.0,0.0002]
[1729365468317,0.56479838,68238.0,68237.0,0.0002]
[1729365468734,0.61736146,68238.0,68237.0,0.0002]
[1729365469920,0.48392624,68238.0,68237.0,0.0002]
[1729365472836,0.48382887,68238.0,68237.0,0.0002]
[1729365474324,0.45374091,68238.0,68237.0,0.0002]
[1729365477232,0.45374091,68238.0,68237.0,0.0588015]
[1729365481347,0.56474826,68238.0,68237.0,0.0002]
[1729365481535,0.61731197,68238.0,68237.0,0.0002]
[1729365481735,0.72601678,68238.0,68237.0,0.0002]
[1729365481936,0.77858049,68238.0,68237.0,0.0002]
[1729365483139,0.72601678,68238.0,68237.0,0.0002]
[1729365483444,0.56474826,68238.0,68237.0,0.0002]
[1729365486035,0.56471546,68238.0,68237.0,0.0002]
[1729365487144,0.61727987,68238.0,68237.0,0.0002]
[1729365487339,0.61727989,68238.0,68237.0,0.0002]
[1729365487655,0.50630534,68238.0,68237.0,0.0002]
[1729365487947,0.56461653,68238.0,68237.0,0.0002]
[1729365488139,0.61718096,68238.0,68237.0,0.0002]
[1729365488449,0.56461653,68238.0,68237.0,0.0002]
[1729365489340,0.45374091,68238.0,68237.0,0.0002]
[1729365492052,0.09294091,68238.0,68237.0,0.0002]
[1729365492251,0.45374091,68238.0,68237.0,0.0002]
[1729365496243,0.09294091,68238.0,68237.0,0.0002]
[1729365496550,0.45374091,68238.0,68237.0,0.0002]
[1729365498054,0.45374091,68238.0,68237.0,0.05880293]
[1729365498241,0.45374091,68238.0,68237.0,0.0002]
[1729365498753,0.45374091,68238.0,68237.0,0.05880293]
[1729365499048,0.45374091,68238.0,68237.0,0.0002]
[1729365500557,0.45374091,68238.0,68237.0,0.05880293]
[1729365500754,0.45374091,68238.0,68237.0,0.0002]
[1729365504253,0.56471056,68238.0,68237.0,0.0002]
[1729365505055,0.61727485,68238.0,68237.0,0.0002]
[1729365505560,0.61724238,68238.0,68237.0,0.0002]
[1729365511265,0.09294091,68238.0,68237.0,0.0002]
[1729365511456,0.45374091,68238.0,68237.0,0.0002]
[1729365515461,0.09294091,68238.0,68237.0,0.0002]
[1729365515657,0.45374091,68238.0,68237.0,0.05880293]
[1729365519270,0.61728058,68238.0,68237.0,0.0002]
[1729365520272,0.6172809,68238.0,68237.0,0.0002]
[1729365522366,0.56471668,68238.0,68237.0,0.0002]
[1729365522973,0.6172809,68238.0,68237.0,0.0002]
[1729365523172,0.77858747,68238.0,68237.0,0.0002]
[1729365523575,0.6172809,68238.0,68237.0,0.0002]
[1729365523766,0.56471668,68238.0,68237.0,0.0002]
[1729365526371,0.45374091,68238.0,68237.0,0.05880293]
[1729365526776,0.45374091,68238.0,68237.0,0.0002]
[1729365527077,0.45374091,68238.0,68237.0,0.05880293]
[1729365527573,0.09294091,68238.0,68237.0,0.05880293]
[1729365527775,0.45374091,68238.0,68237.0,0.05880293]
[1729365528366,0.45374091,68238.0,68237.0,0.0002]
[1729365528676,0.45374091,68238.0,68237.0,0.05880293]
[1729365529068,0.45374091,68238.0,68237.0,0.0002]
[1729365529470,0.45374091,68238.0,68237.0,0.05880293]
[1729365529869,0.45374091,68238.0,68237.0,0.0002]
[1729365530371,0.45374091,68238.0,68237.0,0.05880293]
[1729365531374,0.09294091,68238.0,68237.0,0.05880293]
[1729365531678,0.45374091,68238.0,68237.0,0.05880293]
[1729365532663,0.09294091,68238.0,68237.0,0.05880293]
[1729365532868,0.45374091,68238.0,68237.0,0.05880293]
[1729365533366,0.09294091,68238.0,68237.0,0.05880293]
[1729365533563,0.45374091,68238.0,68237.0,0.05880293]
[1729365534569,0.09294091,68238.0,68237.0,0.05880293]
[1729365535176,0.45374091,68238.0,68237.0,0.05880293]
[1729365535579,0.45374091,68238.0,68237.0,0.0002]
[1729365535771,0.09294091,68238.0,68237.0,0.05880293]
[1729365535971,0.45374091,68238.0,68237.0,0.05880293]
[1729365536170,0.45374091,68238.0,68237.0,0.0002]
[1729365536879,0.09294091,68238.0,68237.0,0.0002]
[1729365537177,0.45374091,68238.0,68237.0,0.05880293]
[1729365538075,0.45374091,68238.0,68237.0,0.0002]
[1729365538277,0.45374091,68238.0,68237.0,0.05880293]
[1729365538578,0.45374091,68238.0,68237.0,0.0002]
[1729365540481,0.09294091,68238.0,68237.0,0.0002]
[1729365540679,0.45374091,68238.0,68237.0,0.0002]
[1729365540880,0.45374091,68238.0,68237.0,0.05880293]
[1729365541583,0.45374091,68238.0,68220.0,0.08856]
[1729365541584,0.56466643,68238.0,68220.0,0.08856]
[1729365541787,0.16349028,68237.0,68235.0,0.065944]
[1729365542088,0.11092552,68236.0,68235.0,0.065944]
[1729365542972,0.11092552,68236.0,68223.0,0.0627]
[1729365543180,0.16131457,68230.0,68229.0,0.06595]
[1729365543387,0.11092552,68230.0,68229.0,0.06595]
[1729365544191,0.17687552,68230.0,68229.0,0.06595]
[1729365545385,0.2035888,68230.0,68229.0,0.06595]
[1729365545683,0.25615356,68230.0,68229.0,0.06595]
[1729365547490,0.25559513,68230.0,68229.0,0.06595]
[1729365547986,0.14522804,68230.0,68229.0,0.06595]
[1729365550685,0.07927804,68230.0,68229.0,0.06595]
[1729365551993,0.02671328,68230.0,68229.0,0.06595]
[1729365552195,0.0002,68232.0,68231.0,0.065949]
[1729365552389,0.0002,68232.0,68231.0,0.066149]
[1729365553387,0.154464,68236.0,68234.0,0.065945]
[1729365553692,0.154464,68236.0,68235.0,0.10149468]
[1729365554495,0.065944,68236.0,68235.0,0.10149468]
[1729365555889,0.065944,68236.0,68235.0,0.18938028]
[1729365556397,0.17649658,68236.0,68235.0,0.0002]
[1729365556691,0.20291891,68236.0,68235.0,0.0002]
[1729365556997,0.1579304,68236.0,68235.0,0.0002]
[1729365557197,0.20291432,68236.0,68235.0,0.0002]
[1729365557996,0.20288875,68236.0,68235.0,0.0002]
[1729365558992,0.25545211,68236.0,68235.0,0.00012115]
[1729365561997,0.25544822,68236.0,68235.0,0.00012115]
[1729365564493,0.09236633,68236.0,68235.0,0.00012115]
[1729365565889,0.09236633,68236.0,68235.0,0.05871403]
[1729365567299,0.09236633,68236.0,68235.0,0.00012115]
[1729365571402,0.20277647,68236.0,68235.0,0.00012115]
[1729365571798,0.20279171,68236.0,68235.0,0.00012115]
[1729365572599,0.56359171,68236.0,68235.0,0.00012115]
[1729365573507,0.61615648,68236.0,68235.0,0.00012115]
[1729365579407,0.45316633,68236.0,68235.0,0.00012115]
[1729365594412,0.56352274,68236.0,68235.0,0.00012115]
[1729365594820,0.61608991,68236.0,68235.0,0.00012115]
[1729365595028,0.56352274,68236.0,68235.0,0.00012115]
[1729365600529,0.56345812,68236.0,68235.0,0.00012115]
[1729365601329,0.56345812,68236.0,68235.0,0.10169348]
[1729365601330,0.45316633,68236.0,68235.0,0.10169348]
[1729365604436,0.09236633,68236.0,68235.0,0.10169348]
[1729365604641,0.45316633,68236.0,68235.0,0.10169348]
[1729365605832,0.45316633,68236.0,68235.0,0.18957908]
[1729365608631,0.09236633,68236.0,68235.0,0.18957908]
[1729365608832,0.45316633,68236.0,68235.0,0.18957908]
[1729365609332,0.52759398,68236.0,68235.0,0.10169348]
[1729365609537,0.52759398,68236.0,68235.0,0.00012115]
[1729365609538,0.25525236,68236.0,68235.0,0.00012115]
[1729365609738,0.56348518,68236.0,68235.0,0.00012115]
[1729365609939,0.61605236,68236.0,68235.0,0.00012115]
[1729365612929,0.72475231,68236.0,68235.0,0.00012115]
[1729365613235,0.77731949,68236.0,68235.0,0.00012115]
[1729365613427,0.77732979,68236.0,68235.0,0.00012115]
[1729365613840,0.72476261,68236.0,68235.0,0.00012115]
[1729365614033,0.7773295,68236.0,68235.0,0.00012115]
[1729365614223,0.61606237,68236.0,68235.0,0.00012115]
[1729365616429,0.45316633,68236.0,68235.0,0.1895225]
[1729365617539,0.45316633,68236.0,68235.0,0.18953123]
[1729365618843,0.45316633,68236.0,68235.0,0.18953739]
[1729365619037,0.45316633,68236.0,68235.0,0.1895411]
[1729365619438,0.45316633,68236.0,68235.0,0.18954454]
[1729365620434,0.45316633,68236.0,68235.0,0.10164306]
[1729365623845,0.09236633,68236.0,68235.0,0.10164306]
[1729365624559,0.45316633,68236.0,68235.0,0.00012115]
[1729365625547,0.45316633,68236.0,68235.0,0.04408301]
[1729365627147,0.09236633,68236.0,68235.0,0.04408301]
[1729365627348,0.45316633,68236.0,68235.0,0.04408301]
[1729365627947,0.45316633,68236.0,68235.0,0.00012115]
[1729365628247,0.45316633,68236.0,68235.0,0.04408301]
[1729365631748,0.56357623,68236.0,68235.0,0.00012115]
[1729365633137,0.61614297,68236.0,68235.0,0.00012115]
[1729365633541,0.61609641,68236.0,68235.0,0.00012115]
[1729365634246,0.72483335,68236.0,68235.0,0.00012115]
[1729365634444,0.61609641,68236.0,68235.0,0.00012115]
[1729365638249,0.6161237,68236.0,68235.0,0.00012115]
[1729365639655,0.45316633,68236.0,68235.0,0.00012115]
[1729365639955,0.45316633,68236.0,68235.0,0.05874586]
[1729365640940,0.09236633,68236.0,68235.0,0.05874586]
[1729365641754,0.45316633,68236.0,68235.0,0.05874586]
[1729365642358,0.45316633,68236.0,68235.0,0.00012115]
[1729365646647,0.56355015,68236.0,68235.0,0.00012115]
[1729365647758,0.20275015,68236.0,68235.0,0.00012115]
[1729365647962,0.56355015,68236.0,68235.0,0.00012115]
[1729365648155,0.56355087,68236.0,68235.0,0.00012115]
[1729365648749,0.20275087,68236.0,68235.0,0.00012115]
[1729365648951,0.56355087,68236.0,68235.0,0.00012115]
[1729365649348,0.20275087,68236.0,68235.0,0.00012115]
[1729365649858,0.56355087,68236.0,68235.0,0.00012115]
[1729365650259,0.20275087,68236.0,68235.0,0.00012115]
[1729365650472,0.56355087,68236.0,68235.0,0.00012115]
[1729365651458,0.61611673,68236.0,68235.0,0.00012115]
[1729365652846,0.25531673,68236.0,68235.0,0.00012115]
[1729365653049,0.56355087,68236.0,68235.0,0.00012115]
[1729365653244,0.61611673,68236.0,68235.0,0.00012115]
[1729365653852,0.72486452,68236.0,68235.0,0.00012115]
[1729365654059,0.61611673,68236.0,68235.0,0.00012115]
[1729365654545,0.45316633,68236.0,68235.0,0.00012115]
[1729365655260,0.45316633,68236.0,68235.0,0.05875608]
[1729365655448,0.45316633,68236.0,68235.0,0.00012115]
[1729365655958,0.45316633,68236.0,68235.0,0.05875595]
[1729365656149,0.45316633,68236.0,68235.0,0.00012115]
[1729365656958,0.45316633,68236.0,68235.0,0.05875578]
[1729365657352,0.45316633,68236.0,68235.0,0.00012115]
[1729365657852,0.45316633,68236.0,68235.0,0.05875547]
[1729365658252,0.45316633,68236.0,68235.0,0.00012115]
[1729365660662,0.45316633,68236.0,68235.0,0.05875495]
[1729365661457,0.45316633,68236.0,68235.0,0.00012115]
[1729365661761,0.6161524,68236.0,68235.0,0.00012115]
[1729365668561,0.6161524,68236.0,68235.0,0.06606615]
[1729365668864,0.27172668,68236.0,68235.0,0.06606615]
[1729365669059,0.11041991,68236.0,68235.0,0.06606615]
[1729365669256,0.33767068,68236.0,68235.0,0.06606615]
[1729365669557,0.27223709,68236.0,68235.0,0.06606615]
[1729365669764,0.065944,68236.0,68235.0,0.06606615]
[1729365670962,0.09252841,68236.0,68235.0,0.06606615]
[1729365672370,0.09252841,68236.0,68235.0,0.00012115]
[1729365674562,0.09252841,68236.0,68232.0,0.131247]
[1729365674963,0.09252841,68236.0,68233.0,0.21993014]
[1729365675972,0.065945,68235.0,68233.0,0.21993014]
[1729365676169,0.065945,68235.0,68233.0,0.28587714]
[1729365680564,0.065945,68235.0,68233.0,0.35914692]
[1729365680764,0.065945,68235.0,68233.0,0.28587714]
[1729365683367,0.065945,68235.0,68233.0,0.35914692]
[1729365684874,0.22725177,68235.0,68233.0,0.28587714]
[1729365685175,0.11047236,68234.0,68233.0,0.28587714]
[1729365685766,0.27177913,68234.0,68233.0,0.28587714]
[1729365685972,0.11047236,68234.0,68233.0,0.28587714]
[1729365686372,0.27177913,68234.0,68233.0,0.28587714]
[1729365686967,0.11047236,68234.0,68233.0,0.28587714]
[1729365689370,0.27177913,68234.0,68233.0,0.28587714]
[1729365689980,0.11047236,68234.0,68233.0,0.28587714]
[1729365690281,0.07460243,68234.0,68233.0,0.28587714]
[1729365690474,0.11049186,68234.0,68233.0,0.28587714]
[1729365690777,0.27179863,68234.0,68233.0,0.28587714]
[1729365691881,0.065945,68235.0,68233.0,0.35914692]
[1729365692173,0.065945,68235.0,68234.0,0.0002]
[1729365699990,0.5372133,68235.0,68234.0,0.0002]
[1729365700176,0.69852007,68235.0,68234.0,0.0002]
[1729365700482,0.75108506,68235.0,68234.0,0.0002]
[1729365700880,0.58977829,68235.0,68234.0,0.0002]
[1729365701085,0.69852405,68235.0,68234.0,0.0002]
[1729365701284,0.75108904,68235.0,68234.0,0.0002]
[1729365701484,0.58977829,68235.0,68234.0,0.0002]
[1729365701684,0.69852463,68235.0,68234.0,0.0002]
[1729365702189,0.58977829,68235.0,68234.0,0.0002]
[1729365703177,0.69852473,68235.0,68234.0,0.0002]
[1729365703887,0.5372133,68235.0,68234.0,0.0002]
[1729365704881,0.69852473,68235.0,68234.0,0.0002]
[1729365705076,0.69852496,68235.0,68234.0,0.0002]
[1729365705291,0.53721353,68235.0,68234.0,0.0002]
[1729365706789,0.426745,68235.0,68234.0,0.0002]
[1729365710689,0.426745,68235.0,68234.0,0.0002]
[1729365721999,0.53709313,68235.0,68234.0,0.0002]
[1729365725803,0.06536292,68235.0,68234.0,0.066146]
[1729365726002,0.06558435,68235.0,68234.0,0.2202395]
[1729365726205,0.066139,68241.0,68234.0,0.63657326]
[1729365726704,0.066139,68241.0,68240.0,0.0002]
[1729365727407,0.066139,68241.0,68240.0,0.06614]
[1729365728403,0.0925783,68241.0,68240.0,0.06614]
[1729365733611,0.0266393,68241.0,68240.0,0.06614]
[1729365735408,0.0002,68241.0,68240.0,1.50096593]
[1729365735613,0.0002,68241.0,68240.0,1.42769615]
[1729365737010,0.0002,68241.0,68240.0,1.32612578]
[1729365737510,0.02954303,68241.0,68240.0,1.32612578]
[1729365741106,0.0002,68241.0,68240.0,1.32612578]
[1729365741308,0.0002,68241.0,68240.0,1.68692578]
[1729365745224,0.0002,68241.0,68240.0,1.76000293]
[1729365745612,0.0002,68241.0,68240.0,1.68692578]
[1729365752317,0.02964354,68241.0,68240.0,1.68692578]
[1729365756608,0.02968353,68241.0,68240.0,1.68692578]
[1729365757515,0.02968353,68241.0,68240.0,1.08692578]
[1729365757720,0.02968353,68241.0,68240.0,1.68692578]
[1729365760120,0.0309,68249.0,68248.0,0.065932]
[1729365760320,0.096831,68249.0,68248.0,0.48213901]
[1729365760522,0.096831,68249.0,68248.0,0.70072389]
[1729365761222,0.096831,68249.0,68248.0,0.77378057]
[1729365762226,0.096831,68249.0,68248.0,0.87497457]
[1729365763127,0.096831,68249.0,68248.0,0.38571088]
[1729365766033,0.096831,68249.0,68248.0,0.41260907]
[1729365766220,0.096831,68249.0,68248.0,0.41272662]
[1729365767027,0.096831,68249.0,68248.0,0.38457928]
[1729365768333,0.096831,68249.0,68248.0,0.48590239]
[1729365770234,0.096831,68249.0,68248.0,0.41273818]
[1729365773023,0.096831,68249.0,68248.0,0.41275202]
[1729365775231,0.20726734,68249.0,68248.0,0.19411876]
[1729365775432,0.20726734,68249.0,68248.0,0.26005076]
[1729365776130,0.14133634,68249.0,68248.0,0.26005076]
[1729365782140,0.0309,68249.0,68248.0,0.48300291]
[1729365788931,0.096831,68249.0,68248.0,0.48300291]
[1729365790232,0.12539732,68249.0,68248.0,0.26005076]
[1729365790433,0.20624665,68249.0,68248.0,0.26005076]
[1729365792234,0.14031565,68249.0,68248.0,0.26005076]
[1729365792433,0.10941565,68249.0,68248.0,0.26005076]
[1729365797131,0.04497102,68249.0,68248.0,0.36174258]
[1729365797332,0.0644,68257.0,68256.0,0.065924]
[1729365797536,0.0644,68257.0,68256.0,0.12441063]
[1729365797736,0.0644,68257.0,68256.0,0.34558529]
[1729365800143,0.0644,68257.0,68256.0,0.28709866]
[1729365800444,0.0644,68257.0,68256.0,0.34558529]